[Event "*** SCC Grand Prix: Titled Tuesday Blitz"]
[Site "Chess.com"]
[Date "2020.07.21"]
[Round "7"]
[White "Funo09"]
[Black "turayev_shahruh17"]
[Result "1-0"]
[WhiteElo "2770"]
[BlackElo "2541"]
[TimeControl "180+1"]
[EndTime "11:16:12 PDT"]
[Termination "Funo09 won by checkmate"]

1. Nf3 {[%clk 0:03:00.8]} 1... Nf6 {[%clk 0:03:00]} 2. b3 {[%clk 0:03:01.3]}
2... g6 {[%clk 0:02:59.1]} 3. Bb2 {[%clk 0:03:02.2]} 3... Bg7 {[%clk 0:02:59.7]}
4. e3 {[%clk 0:03:02.7]} 4... O-O {[%clk 0:03:00.1]} 5. d4 {[%clk 0:03:03.3]}
5... d5 {[%clk 0:03:00.3]} 6. Be2 {[%clk 0:03:03.2]} 6... Bg4 {[%clk 0:02:59.5]}
7. O-O {[%clk 0:03:02.5]} 7... c5 {[%clk 0:02:54.5]} 8. Nbd2 {[%clk 0:02:55]}
8... Nc6 {[%clk 0:02:50.7]} 9. dxc5 {[%clk 0:02:32.2]} 9... Qa5 {[%clk 0:02:44]}
10. c4 {[%clk 0:02:30.9]} 10... Qxc5 {[%clk 0:01:25.8]} 11. Rc1 {[%clk
0:02:28.1]} 11... dxc4 {[%clk 0:00:20.4]} 12. Nxc4 {[%clk 0:02:17.8]} 12... Rad8
{[%clk 0:00:20.7]} 13. Qe1 {[%clk 0:02:16]} 13... Qb4 {[%clk 0:00:21]} 14. Bc3
{[%clk 0:02:15.1]} 14... Qc5 {[%clk 0:00:21.5]} 15. h3 {[%clk 0:02:12.6]} 15...
Bxf3 {[%clk 0:00:21.4]} 16. Bxf3 {[%clk 0:02:12.5]} 16... Qf5 {[%clk 0:00:17.1]}
17. e4 {[%clk 0:02:09.4]} 17... Qc8 {[%clk 0:00:16]} 18. b4 {[%clk 0:02:03.3]}
18... Nd4 {[%clk 0:00:14.6]} 19. Nd2 {[%clk 0:01:46.2]} 19... Nxf3+ {[%clk
0:00:14.1]} 20. Nxf3 {[%clk 0:01:47.1]} 20... Qe6 {[%clk 0:00:13.9]} 21. e5
{[%clk 0:01:41.9]} 21... Nd5 {[%clk 0:00:13.8]} 22. Ba1 {[%clk 0:01:42.5]} 22...
Qb6 {[%clk 0:00:13.1]} 23. a3 {[%clk 0:01:41.2]} 23... e6 {[%clk 0:00:13.3]} 24.
Bd4 {[%clk 0:01:39.5]} 24... Qa6 {[%clk 0:00:12.8]} 25. Bc5 {[%clk 0:01:39.2]}
25... Rfe8 {[%clk 0:00:12.5]} 26. Qe4 {[%clk 0:01:38.6]} 26... Qxa3 {[%clk
0:00:11.6]} 27. Ra1 {[%clk 0:01:38.1]} 27... Qb2 {[%clk 0:00:11.2]} 28. Rxa7
{[%clk 0:01:37.9]} 28... Nc3 {[%clk 0:00:10.9]} 29. Qxb7 {[%clk 0:01:35.2]}
29... Ne2+ {[%clk 0:00:10.5]} 30. Kh1 {[%clk 0:01:34.6]} 30... Nf4 {[%clk
0:00:10.9]} 31. Qxf7+ {[%clk 0:01:33.9]} 31... Kh8 {[%clk 0:00:11.2]} 32. Qxg7#
{[%clk 0:01:34.8]} 1-0

[Event "*** SCC Grand Prix: Titled Tuesday Blitz"]
[Site "Chess.com"]
[Date "2020.07.21"]
[Round "7"]
[White "Kobalia"]
[Black "hansen"]
[Result "0-1"]
[WhiteElo "2758"]
[BlackElo "2916"]
[TimeControl "180+1"]
[EndTime "11:16:15 PDT"]
[Termination "hansen won by resignation"]

1. e4 {[%clk 0:03:00.9]} 1... e5 {[%clk 0:02:55.9]} 2. Nf3 {[%clk 0:03:00.3]}
2... Nc6 {[%clk 0:02:55.9]} 3. Bb5 {[%clk 0:02:59.8]} 3... a6 {[%clk 0:02:53.1]}
4. Ba4 {[%clk 0:02:59.9]} 4... Nf6 {[%clk 0:02:53.3]} 5. O-O {[%clk 0:02:59.6]}
5... Be7 {[%clk 0:02:51.9]} 6. d3 {[%clk 0:02:58.8]} 6... d6 {[%clk 0:02:47]} 7.
c3 {[%clk 0:02:58.2]} 7... O-O {[%clk 0:02:46.7]} 8. Nbd2 {[%clk 0:02:57.1]}
8... Nd7 {[%clk 0:02:46.9]} 9. Bc2 {[%clk 0:02:47.7]} 9... Nb6 {[%clk
0:02:38.7]} 10. Re1 {[%clk 0:02:46.4]} 10... f5 {[%clk 0:02:37.6]} 11. d4 {[%clk
0:02:25.5]} 11... f4 {[%clk 0:02:31.5]} 12. dxe5 {[%clk 0:02:20.5]} 12... dxe5
{[%clk 0:02:31.5]} 13. Bb3+ {[%clk 0:02:20]} 13... Kh8 {[%clk 0:02:30.7]} 14.
Nc4 {[%clk 0:02:20]} 14... Nxc4 {[%clk 0:02:19.7]} 15. Bxc4 {[%clk 0:02:11.8]}
15... Bd6 {[%clk 0:02:14]} 16. b4 {[%clk 0:01:55.6]} 16... g5 {[%clk 0:02:13.2]}
17. a4 {[%clk 0:01:54.3]} 17... g4 {[%clk 0:02:13]} 18. Nd2 {[%clk 0:01:54.1]}
18... Rf6 {[%clk 0:01:41.3]} 19. Ba3 {[%clk 0:01:47.2]} 19... Rh6 {[%clk
0:01:35.3]} 20. g3 {[%clk 0:01:47.3]} 20... Qg5 {[%clk 0:01:31.9]} 21. b5 {[%clk
0:01:40.6]} 21... Na5 {[%clk 0:01:29.7]} 22. Bf1 {[%clk 0:01:31.9]} 22... Bxa3
{[%clk 0:01:10.5]} 23. Rxa3 {[%clk 0:01:30.8]} 23... Rd6 {[%clk 0:01:11.1]} 24.
Ra2 {[%clk 0:00:50.8]} 24... Be6 {[%clk 0:01:10.5]} 25. Rb2 {[%clk 0:00:50.2]}
25... Rad8 {[%clk 0:01:09.7]} 26. bxa6 {[%clk 0:00:40.7]} 26... bxa6 {[%clk
0:01:09.3]} 27. Qc1 {[%clk 0:00:23.6]} 27... fxg3 {[%clk 0:01:03.9]} 28. Nc4
{[%clk 0:00:23.6]} 28... Qxc1 {[%clk 0:00:57.9]} 29. Rxc1 {[%clk 0:00:23.1]}
29... gxh2+ {[%clk 0:00:57.4]} 30. Kxh2 {[%clk 0:00:22.4]} 30... Bxc4 {[%clk
0:00:58.3]} 0-1

[Event "*** SCC Grand Prix: Titled Tuesday Blitz"]
[Site "Chess.com"]
[Date "2020.07.21"]
[Round "7"]
[White "MagnusSeinFanboy"]
[Black "MIJUAREZ"]
[Result "1-0"]
[WhiteElo "2527"]
[BlackElo "2389"]
[TimeControl "180+1"]
[EndTime "11:16:18 PDT"]
[Termination "MagnusSeinFanboy won on time"]

1. d4 {[%clk 0:03:00.9]} 1... d5 {[%clk 0:02:57.5]} 2. c4 {[%clk 0:03:01.2]}
2... e6 {[%clk 0:02:56.9]} 3. Nc3 {[%clk 0:03:00.6]} 3... Nf6 {[%clk 0:02:57.1]}
4. cxd5 {[%clk 0:03:00.5]} 4... Nxd5 {[%clk 0:02:55.7]} 5. e4 {[%clk 0:03:00.7]}
5... Nxc3 {[%clk 0:02:55.3]} 6. bxc3 {[%clk 0:03:01.6]} 6... c5 {[%clk
0:02:55.3]} 7. Nf3 {[%clk 0:03:01.7]} 7... cxd4 {[%clk 0:02:54.4]} 8. cxd4
{[%clk 0:03:02.6]} 8... Bb4+ {[%clk 0:02:54.1]} 9. Bd2 {[%clk 0:03:03.2]} 9...
Bxd2+ {[%clk 0:02:54.1]} 10. Qxd2 {[%clk 0:03:04.1]} 10... O-O {[%clk
0:02:53.6]} 11. Be2 {[%clk 0:03:04.7]} 11... Nc6 {[%clk 0:02:53.7]} 12. O-O
{[%clk 0:03:03]} 12... b6 {[%clk 0:02:53.8]} 13. d5 {[%clk 0:03:00.4]} 13...
exd5 {[%clk 0:02:52.2]} 14. exd5 {[%clk 0:03:01.3]} 14... Na5 {[%clk 0:02:50.2]}
15. d6 {[%clk 0:02:59.2]} 15... Bb7 {[%clk 0:02:48.9]} 16. Rfd1 {[%clk
0:02:56.9]} 16... Rc8 {[%clk 0:02:47.3]} 17. Qf4 {[%clk 0:02:36.6]} 17... Rc5
{[%clk 0:02:45.3]} 18. Rac1 {[%clk 0:02:34]} 18... Rd5 {[%clk 0:02:19]} 19. Rxd5
{[%clk 0:01:54.3]} 19... Bxd5 {[%clk 0:02:18.6]} 20. Rc7 {[%clk 0:01:27.9]}
20... Nb7 {[%clk 0:02:05.6]} 21. d7 {[%clk 0:01:22.5]} 21... Bxf3 {[%clk
0:01:53.3]} 22. Bxf3 {[%clk 0:01:13.9]} 22... Nc5 {[%clk 0:01:54.2]} 23. Qd6
{[%clk 0:01:04]} 23... Qg5 {[%clk 0:01:28.7]} 24. Qxf8+ {[%clk 0:01:03.3]} 24...
Kxf8 {[%clk 0:01:28.5]} 25. Rc8+ {[%clk 0:01:03.9]} 1-0

[Event "*** SCC Grand Prix: Titled Tuesday Blitz"]
[Site "Chess.com"]
[Date "2020.07.21"]
[Round "7"]
[White "r31415"]
[Black "Undisputed92"]
[Result "0-1"]
[WhiteElo "2453"]
[BlackElo "2647"]
[TimeControl "180+1"]
[EndTime "11:16:19 PDT"]
[Termination "Undisputed92 won by resignation"]

1. e4 {[%clk 0:03:00.9]} 1... c5 {[%clk 0:02:58]} 2. Nf3 {[%clk 0:03:01.1]} 2...
d6 {[%clk 0:02:58]} 3. d4 {[%clk 0:03:01.7]} 3... cxd4 {[%clk 0:02:58.4]} 4.
Nxd4 {[%clk 0:03:02.6]} 4... Nf6 {[%clk 0:02:58.7]} 5. Nc3 {[%clk 0:03:03.2]}
5... a6 {[%clk 0:02:59.1]} 6. h3 {[%clk 0:03:03.8]} 6... e5 {[%clk 0:02:58.8]}
7. Nde2 {[%clk 0:03:04]} 7... h5 {[%clk 0:02:58.1]} 8. g3 {[%clk 0:03:04.5]}
8... Be6 {[%clk 0:02:57.1]} 9. Bg2 {[%clk 0:03:05]} 9... Nbd7 {[%clk 0:02:56.8]}
10. a4 {[%clk 0:03:05.5]} 10... Rc8 {[%clk 0:02:56.5]} 11. Be3 {[%clk
0:03:05.3]} 11... Be7 {[%clk 0:02:55.8]} 12. Qd2 {[%clk 0:03:04.8]} 12... Nb6
{[%clk 0:02:55.3]} 13. b3 {[%clk 0:03:04.3]} 13... d5 {[%clk 0:02:50.4]} 14.
Bxb6 {[%clk 0:03:03.7]} 14... Qxb6 {[%clk 0:02:49.9]} 15. Nxd5 {[%clk
0:03:00.7]} 15... Nxd5 {[%clk 0:02:42.7]} 16. exd5 {[%clk 0:03:01.6]} 16... Bf5
{[%clk 0:02:43.1]} 17. Ra2 {[%clk 0:02:21.8]} 17... Bb4 {[%clk 0:02:25.9]} 18.
c3 {[%clk 0:02:21.3]} 18... Bc5 {[%clk 0:02:25.2]} 19. O-O {[%clk 0:02:15]}
19... Qxb3 {[%clk 0:02:24.5]} 20. Rb2 {[%clk 0:02:12.2]} 20... Qxa4 {[%clk
0:02:24.5]} 21. Rxb7 {[%clk 0:02:11.1]} 21... O-O {[%clk 0:02:23.9]} 22. Qg5
{[%clk 0:02:02.7]} 22... Bg6 {[%clk 0:02:21.6]} 23. Bf3 {[%clk 0:01:39.6]} 23...
Qc4 {[%clk 0:02:08.1]} 24. Rd7 {[%clk 0:01:26.9]} 24... Qb5 {[%clk 0:01:46.4]}
25. Bxh5 {[%clk 0:00:51.5]} 25... Bxh5 {[%clk 0:01:41]} 26. Qf5 {[%clk
0:00:39.7]} 26... Bxe2 {[%clk 0:01:28.1]} 27. Re1 {[%clk 0:00:35.1]} 27... Qd3
{[%clk 0:01:21.7]} 28. Qg5 {[%clk 0:00:27.3]} 28... Qf3 {[%clk 0:01:17.3]} 29.
Rxe2 {[%clk 0:00:22.6]} 29... Qxe2 {[%clk 0:01:15.4]} 30. Qf5 {[%clk 0:00:23.5]}
30... e4 {[%clk 0:01:08.3]} 31. h4 {[%clk 0:00:16.8]} 31... e3 {[%clk
0:01:07.4]} 0-1

[Event "*** SCC Grand Prix: Titled Tuesday Blitz"]
[Site "Chess.com"]
[Date "2020.07.21"]
[Round "7"]
[White "canary2016"]
[Black "tandaleo"]
[Result "1/2-1/2"]
[WhiteElo "1930"]
[BlackElo "2309"]
[TimeControl "180+1"]
[EndTime "11:16:19 PDT"]
[Termination "Game drawn by repetition"]

1. d4 {[%clk 0:03:00.9]} 1... d5 {[%clk 0:02:59.3]} 2. c4 {[%clk 0:03:00.4]}
2... e6 {[%clk 0:02:59.4]} 3. Nc3 {[%clk 0:03:00]} 3... c6 {[%clk 0:02:59.6]} 4.
Bf4 {[%clk 0:02:53.2]} 4... Bd6 {[%clk 0:02:53]} 5. Bxd6 {[%clk 0:02:49.6]} 5...
Qxd6 {[%clk 0:02:52.8]} 6. e3 {[%clk 0:02:49.9]} 6... Nf6 {[%clk 0:02:52.4]} 7.
Nf3 {[%clk 0:02:49.6]} 7... O-O {[%clk 0:02:52.3]} 8. Be2 {[%clk 0:02:49.5]}
8... dxc4 {[%clk 0:02:43.8]} 9. Bxc4 {[%clk 0:02:48.8]} 9... b5 {[%clk
0:02:43.8]} 10. Bd3 {[%clk 0:02:48.5]} 10... b4 {[%clk 0:02:38.6]} 11. Ne4
{[%clk 0:02:48]} 11... Nxe4 {[%clk 0:02:37.6]} 12. Bxe4 {[%clk 0:02:48]} 12...
Bb7 {[%clk 0:02:37.5]} 13. Qc2 {[%clk 0:02:47.7]} 13... Nd7 {[%clk 0:02:32.7]}
14. Bxh7+ {[%clk 0:02:46.8]} 14... Kh8 {[%clk 0:02:32.1]} 15. Bd3 {[%clk
0:02:40.5]} 15... c5 {[%clk 0:02:30.3]} 16. dxc5 {[%clk 0:02:31.9]} 16... Nxc5
{[%clk 0:02:30.2]} 17. Be2 {[%clk 0:02:31.7]} 17... Rac8 {[%clk 0:02:07.9]} 18.
O-O {[%clk 0:02:28.9]} 18... Ne4 {[%clk 0:02:07.8]} 19. Qb3 {[%clk 0:02:25.4]}
19... Bd5 {[%clk 0:02:07.1]} 20. Qd3 {[%clk 0:02:22.8]} 20... Qe7 {[%clk
0:02:04.3]} 21. Nd4 {[%clk 0:02:19.7]} 21... Ba8 {[%clk 0:01:53.5]} 22. Bf3
{[%clk 0:02:18]} 22... f5 {[%clk 0:01:53.6]} 23. Rac1 {[%clk 0:02:16.3]} 23...
Rcd8 {[%clk 0:01:53.2]} 24. Qe2 {[%clk 0:02:08.4]} 24... e5 {[%clk 0:01:36.9]}
25. Nc6 {[%clk 0:02:06.9]} 25... Bxc6 {[%clk 0:01:35.4]} 26. Rxc6 {[%clk
0:02:06.8]} 26... Nd2 {[%clk 0:01:09.7]} 27. Rd1 {[%clk 0:01:53.4]} 27... e4
{[%clk 0:01:08.8]} 28. Rxd2 {[%clk 0:01:51.6]} 28... exf3 {[%clk 0:01:08.6]} 29.
Qd1 {[%clk 0:01:49.2]} 29... Qg5 {[%clk 0:00:57.2]} 30. g3 {[%clk 0:01:40.6]}
30... Rxd2 {[%clk 0:00:56.8]} 31. Qxd2 {[%clk 0:01:40.2]} 31... Qh5 {[%clk
0:00:52.3]} 32. Qd6 {[%clk 0:01:30.3]} 32... Qh3 {[%clk 0:00:34.3]} 33. Qxf8+
{[%clk 0:01:29.9]} 33... Kh7 {[%clk 0:00:34.6]} 34. Rh6+ {[%clk 0:01:11.7]}
34... gxh6 {[%clk 0:00:21.2]} 35. Qf7+ {[%clk 0:01:10.4]} 35... Kh8 {[%clk
0:00:22.1]} 36. Qf8+ {[%clk 0:01:08.8]} 36... Kh7 {[%clk 0:00:22.3]} 37. Qf7+
{[%clk 0:01:08.8]} 37... Kh8 {[%clk 0:00:22.2]} 38. Qf8+ {[%clk 0:01:08]} 38...
Kh7 {[%clk 0:00:23.1]} 1/2-1/2

[Event "*** SCC Grand Prix: Titled Tuesday Blitz"]
[Site "Chess.com"]
[Date "2020.07.21"]
[Round "7"]
[White "axvesik"]
[Black "Dauletova"]
[Result "0-1"]
[WhiteElo "2464"]
[BlackElo "2341"]
[TimeControl "180+1"]
[EndTime "11:16:24 PDT"]
[Termination "Dauletova won by resignation"]

1. e4 {[%clk 0:03:00.9]} 1... e5 {[%clk 0:02:59.9]} 2. Nf3 {[%clk 0:02:59.9]}
2... Nc6 {[%clk 0:03:00.2]} 3. Bc4 {[%clk 0:03:00.2]} 3... Bc5 {[%clk
0:02:59.8]} 4. O-O {[%clk 0:02:59.4]} 4... Nf6 {[%clk 0:02:59.4]} 5. d3 {[%clk
0:02:59.5]} 5... d6 {[%clk 0:02:58.2]} 6. c3 {[%clk 0:02:59.7]} 6... h6 {[%clk
0:02:58]} 7. Nbd2 {[%clk 0:02:57.7]} 7... a5 {[%clk 0:02:55.4]} 8. Re1 {[%clk
0:02:47.7]} 8... O-O {[%clk 0:02:54.8]} 9. Nf1 {[%clk 0:02:44.8]} 9... Be6
{[%clk 0:02:54.2]} 10. Bb5 {[%clk 0:02:41.5]} 10... Ne7 {[%clk 0:02:48.6]} 11.
h3 {[%clk 0:02:38.8]} 11... Ng6 {[%clk 0:02:43.4]} 12. Ng3 {[%clk 0:02:36.5]}
12... c6 {[%clk 0:02:39]} 13. Ba4 {[%clk 0:02:36.4]} 13... b5 {[%clk 0:02:35.7]}
14. Bc2 {[%clk 0:02:35.1]} 14... a4 {[%clk 0:02:32.3]} 15. d4 {[%clk 0:02:32.8]}
15... Bb6 {[%clk 0:02:26.5]} 16. Be3 {[%clk 0:02:30.8]} 16... a3 {[%clk
0:02:16.2]} 17. b4 {[%clk 0:02:11.6]} 17... Qc7 {[%clk 0:02:07.5]} 18. Qd2
{[%clk 0:02:07.5]} 18... Rfd8 {[%clk 0:01:49.3]} 19. Nf5 {[%clk 0:01:42.6]}
19... d5 {[%clk 0:01:26.1]} 20. Bxh6 {[%clk 0:01:18.2]} 20... Nxe4 {[%clk
0:00:57.6]} 21. Bxe4 {[%clk 0:00:51.9]} 21... dxe4 {[%clk 0:00:58.5]} 22. Nxg7
{[%clk 0:00:52]} 22... exf3 {[%clk 0:00:54.7]} 23. Nxe6 {[%clk 0:00:52.3]} 23...
fxe6 {[%clk 0:00:54.4]} 24. Qg5 {[%clk 0:00:53]} 24... Qf7 {[%clk 0:00:50.8]}
25. Rxe5 {[%clk 0:00:53.4]} 25... Kh7 {[%clk 0:00:39.2]} 26. Qh5 {[%clk
0:00:48.5]} 26... Nxe5 {[%clk 0:00:38.8]} 27. Qh4 {[%clk 0:00:35.1]} 27... Ng6
{[%clk 0:00:34.4]} 28. Qh5 {[%clk 0:00:34.6]} 28... Qf5 {[%clk 0:00:34.3]} 0-1

[Event "*** SCC Grand Prix: Titled Tuesday Blitz"]
[Site "Chess.com"]
[Date "2020.07.21"]
[Round "7"]
[White "bgfbfbgfbgfgf"]
[Black "Mikasinski"]
[Result "1-0"]
[WhiteElo "2641"]
[BlackElo "2433"]
[TimeControl "180+1"]
[EndTime "11:16:30 PDT"]
[Termination "bgfbfbgfbgfgf won on time"]

1. e4 {[%clk 0:03:00.9]} 1... c5 {[%clk 0:02:59.9]} 2. Nf3 {[%clk 0:02:58.1]}
2... d6 {[%clk 0:03:00.2]} 3. d4 {[%clk 0:02:58.6]} 3... cxd4 {[%clk 0:03:01]}
4. Nxd4 {[%clk 0:02:59.5]} 4... Nf6 {[%clk 0:03:01.6]} 5. Nc3 {[%clk 0:03:00.1]}
5... g6 {[%clk 0:03:02.2]} 6. Be3 {[%clk 0:02:59.1]} 6... Bg7 {[%clk 0:03:02.6]}
7. f3 {[%clk 0:02:59.4]} 7... O-O {[%clk 0:03:03.2]} 8. Qd2 {[%clk 0:03:00.1]}
8... Nc6 {[%clk 0:03:03.2]} 9. g4 {[%clk 0:03:00.7]} 9... Bd7 {[%clk 0:03:02.6]}
10. O-O-O {[%clk 0:03:00.1]} 10... Rc8 {[%clk 0:03:02.5]} 11. h4 {[%clk
0:02:59.4]} 11... Ne5 {[%clk 0:03:02.6]} 12. h5 {[%clk 0:02:57.8]} 12... Qa5
{[%clk 0:03:02.5]} 13. hxg6 {[%clk 0:02:47.7]} 13... fxg6 {[%clk 0:03:02]} 14.
Kb1 {[%clk 0:02:39.6]} 14... Rxc3 {[%clk 0:02:57.9]} 15. Qxc3 {[%clk 0:02:38.7]}
15... Qxc3 {[%clk 0:02:57.5]} 16. bxc3 {[%clk 0:02:39.6]} 16... Nxf3 {[%clk
0:02:57.9]} 17. Nxf3 {[%clk 0:02:35.2]} 17... Bxg4 {[%clk 0:02:57.5]} 18. Bc4+
{[%clk 0:02:03.9]} 18... Kh8 {[%clk 0:02:24]} 19. Ng5 {[%clk 0:02:01.6]} 19...
Bxd1 {[%clk 0:02:23]} 20. Rxd1 {[%clk 0:02:01.3]} 20... h6 {[%clk 0:02:14.8]}
21. Ne6 {[%clk 0:01:58.5]} 21... Nxe4 {[%clk 0:01:35.2]} 22. Rh1 {[%clk
0:01:57.3]} 22... Ng3 {[%clk 0:01:16.4]} 23. Nxf8 {[%clk 0:01:52.1]} 23... Nxh1
{[%clk 0:00:45.5]} 24. Nxg6+ {[%clk 0:01:48.8]} 24... Kh7 {[%clk 0:00:45.4]} 25.
Nxe7 {[%clk 0:01:49.7]} 25... Bxc3 {[%clk 0:00:41.1]} 26. Bd3+ {[%clk
0:01:48.8]} 26... Kg7 {[%clk 0:00:36.7]} 27. Nf5+ {[%clk 0:01:49.7]} 27... Kf6
{[%clk 0:00:36.8]} 28. Nxd6 {[%clk 0:01:48.7]} 28... Be5 {[%clk 0:00:17.8]} 29.
Ne4+ {[%clk 0:01:46.6]} 29... Kg7 {[%clk 0:00:16.8]} 30. Be2 {[%clk 0:01:40.7]}
30... b6 {[%clk 0:00:13.3]} 31. Bf3 {[%clk 0:01:35.4]} 31... Ng3 {[%clk
0:00:13.4]} 32. Nxg3 {[%clk 0:01:35.9]} 32... Bxg3 {[%clk 0:00:14.3]} 33. Bh5
{[%clk 0:01:36.8]} 33... Bh4 {[%clk 0:00:08.6]} 34. Kb2 {[%clk 0:01:35.7]} 34...
Bg5 {[%clk 0:00:04.5]} 35. Bd4+ {[%clk 0:01:35]} 35... Kf8 {[%clk 0:00:04.1]}
36. Kb3 {[%clk 0:01:34.9]} 36... Ke7 {[%clk 0:00:04.4]} 37. Kc4 {[%clk
0:01:35.5]} 37... Kd6 {[%clk 0:00:04.4]} 38. Kb5 {[%clk 0:01:35.9]} 38... Kd5
{[%clk 0:00:02.7]} 39. Bg7 {[%clk 0:01:35.4]} 39... Ke4 {[%clk 0:00:01.8]} 40.
Ka6 {[%clk 0:01:35.4]} 1-0

[Event "*** SCC Grand Prix: Titled Tuesday Blitz"]
[Site "Chess.com"]
[Date "2020.07.21"]
[Round "7"]
[White "MF1966Idrisov"]
[Black "manmanlai1"]
[Result "1/2-1/2"]
[WhiteElo "2368"]
[BlackElo "2494"]
[TimeControl "180+1"]
[EndTime "11:16:31 PDT"]
[Termination "Game drawn by repetition"]

1. Nf3 {[%clk 0:03:00.9]} 1... d5 {[%clk 0:02:57.7]} 2. b3 {[%clk 0:03:01.1]}
2... Nf6 {[%clk 0:02:52.2]} 3. Bb2 {[%clk 0:03:01.5]} 3... g6 {[%clk 0:02:52.4]}
4. e3 {[%clk 0:03:02.1]} 4... Bg7 {[%clk 0:02:52.4]} 5. d4 {[%clk 0:03:02.7]}
5... O-O {[%clk 0:02:52.3]} 6. Bd3 {[%clk 0:03:03.3]} 6... c6 {[%clk 0:02:48.6]}
7. h3 {[%clk 0:03:03.6]} 7... Bf5 {[%clk 0:02:48.5]} 8. O-O {[%clk 0:03:03.9]}
8... Nbd7 {[%clk 0:02:47.4]} 9. Nbd2 {[%clk 0:03:03.2]} 9... Bxd3 {[%clk
0:02:45.9]} 10. cxd3 {[%clk 0:03:02.6]} 10... Re8 {[%clk 0:02:43.7]} 11. Qe2
{[%clk 0:03:00.5]} 11... e6 {[%clk 0:02:42.8]} 12. Rfc1 {[%clk 0:02:58.8]} 12...
h5 {[%clk 0:02:36.8]} 13. b4 {[%clk 0:02:58.3]} 13... a6 {[%clk 0:02:36.3]} 14.
Nb3 {[%clk 0:02:56.4]} 14... Bf8 {[%clk 0:02:34.6]} 15. Nc5 {[%clk 0:02:54.7]}
15... Nxc5 {[%clk 0:02:34.4]} 16. dxc5 {[%clk 0:02:54.6]} 16... Bg7 {[%clk
0:02:34.1]} 17. e4 {[%clk 0:02:47.8]} 17... Nd7 {[%clk 0:02:32.3]} 18. e5 {[%clk
0:02:43.7]} 18... Bh6 {[%clk 0:02:30.3]} 19. Rf1 {[%clk 0:02:39.8]} 19... a5
{[%clk 0:02:30.3]} 20. a3 {[%clk 0:02:39.3]} 20... axb4 {[%clk 0:02:30.2]} 21.
axb4 {[%clk 0:02:39.6]} 21... Qe7 {[%clk 0:02:29.9]} 22. d4 {[%clk 0:02:38.2]}
22... Qf8 {[%clk 0:02:29.7]} 23. g3 {[%clk 0:02:30.5]} 23... Rxa1 {[%clk
0:02:29.5]} 24. Rxa1 {[%clk 0:02:29.6]} 24... Ra8 {[%clk 0:02:30]} 25. Qd1
{[%clk 0:02:29.2]} 25... Qb8 {[%clk 0:02:28.3]} 26. Ra4 {[%clk 0:02:27]} 26...
b6 {[%clk 0:02:03.7]} 27. Bc3 {[%clk 0:02:10.5]} 27... Qb7 {[%clk 0:01:56.3]}
28. Qa1 {[%clk 0:02:02.6]} 28... Rxa4 {[%clk 0:01:52.2]} 29. Qxa4 {[%clk
0:02:01.9]} 29... b5 {[%clk 0:01:51.3]} 30. Qa5 {[%clk 0:02:00]} 30... Qc8
{[%clk 0:01:51.3]} 31. Bd2 {[%clk 0:01:55.8]} 31... Bxd2 {[%clk 0:01:47]} 32.
Nxd2 {[%clk 0:01:55.7]} 32... Kg7 {[%clk 0:01:47.2]} 33. Kg2 {[%clk 0:01:55]}
33... Kf8 {[%clk 0:01:45.9]} 34. Qa7 {[%clk 0:01:53.8]} 34... Ke7 {[%clk
0:01:45.6]} 35. Nb3 {[%clk 0:01:53.7]} 35... Qb8 {[%clk 0:01:45.9]} 36. Qa6
{[%clk 0:01:50.7]} 36... Qc7 {[%clk 0:01:46.1]} 37. Na5 {[%clk 0:01:49]} 37...
Nb8 {[%clk 0:01:46.1]} 38. Qa8 {[%clk 0:01:44.8]} 38... Kd7 {[%clk 0:01:45.1]}
39. h4 {[%clk 0:01:43.7]} 39... Ke7 {[%clk 0:01:44.8]} 40. Kf3 {[%clk
0:01:43.3]} 40... Kd7 {[%clk 0:01:44.8]} 41. Kf4 {[%clk 0:01:43.5]} 41... Kc8
{[%clk 0:01:42.3]} 42. f3 {[%clk 0:01:38]} 42... f6 {[%clk 0:01:35.3]} 43. Nb3
{[%clk 0:01:22.9]} 43... Kd8 {[%clk 0:01:21.4]} 44. g4 {[%clk 0:01:19]} 44...
Ke7 {[%clk 0:01:19.4]} 45. g5 {[%clk 0:01:17.1]} 45... fxg5+ {[%clk 0:01:14]}
46. hxg5 {[%clk 0:01:16.2]} 46... Kf7 {[%clk 0:01:09.7]} 47. Kg3 {[%clk
0:01:14.4]} 47... Ke8 {[%clk 0:01:08.4]} 48. f4 {[%clk 0:01:13.4]} 48... Kd8
{[%clk 0:01:08.2]} 49. Na5 {[%clk 0:01:09.1]} 49... Kc8 {[%clk 0:01:07.5]} 50.
Kh4 {[%clk 0:01:08.8]} 50... Qd7 {[%clk 0:01:04.8]} 51. Kg3 {[%clk 0:01:08.2]}
51... Qc7 {[%clk 0:01:05]} 52. Kh4 {[%clk 0:01:08.2]} 52... Qf7 {[%clk 0:01:02]}
53. Kg3 {[%clk 0:01:08.2]} 53... Qc7 {[%clk 0:00:56.9]} 1/2-1/2

[Event "*** SCC Grand Prix: Titled Tuesday Blitz"]
[Site "Chess.com"]
[Date "2020.07.21"]
[Round "7"]
[White "awesomevishesh"]
[Black "Makswolf200817"]
[Result "0-1"]
[WhiteElo "2342"]
[BlackElo "2483"]
[TimeControl "180+1"]
[EndTime "11:16:46 PDT"]
[Termination "Makswolf200817 won on time"]

1. e4 {[%clk 0:02:57.6]} 1... c5 {[%clk 0:02:58.2]} 2. Nf3 {[%clk 0:02:54.7]}
2... e6 {[%clk 0:02:57.5]} 3. d4 {[%clk 0:02:52.4]} 3... cxd4 {[%clk 0:02:58.4]}
4. Nxd4 {[%clk 0:02:52.5]} 4... a6 {[%clk 0:02:58.6]} 5. c4 {[%clk 0:02:50.5]}
5... Nf6 {[%clk 0:02:58.1]} 6. Nc3 {[%clk 0:02:49.6]} 6... Qc7 {[%clk
0:02:57.9]} 7. Be2 {[%clk 0:02:38.6]} 7... b6 {[%clk 0:02:56]} 8. f4 {[%clk
0:02:17.1]} 8... d6 {[%clk 0:02:43]} 9. O-O {[%clk 0:02:15.6]} 9... Bb7 {[%clk
0:02:42.4]} 10. Qd3 {[%clk 0:02:14.2]} 10... Nbd7 {[%clk 0:02:41.4]} 11. b4
{[%clk 0:02:10.4]} 11... Rc8 {[%clk 0:02:35.6]} 12. Bd2 {[%clk 0:01:36]} 12...
Be7 {[%clk 0:02:32.1]} 13. Rac1 {[%clk 0:01:30]} 13... O-O {[%clk 0:02:30.6]}
14. g4 {[%clk 0:01:16.1]} 14... h6 {[%clk 0:02:06.2]} 15. h4 {[%clk 0:01:10.7]}
15... Rfd8 {[%clk 0:01:56.7]} 16. g5 {[%clk 0:01:09.2]} 16... hxg5 {[%clk
0:01:54]} 17. hxg5 {[%clk 0:01:07.3]} 17... Ne8 {[%clk 0:01:53.7]} 18. g6 {[%clk
0:01:03.4]} 18... Nef6 {[%clk 0:01:28]} 19. gxf7+ {[%clk 0:00:29.2]} 19... Kxf7
{[%clk 0:01:28.9]} 20. Nd5 {[%clk 0:00:15.5]} 20... exd5 {[%clk 0:01:17.7]} 21.
cxd5 {[%clk 0:00:14.1]} 21... Qb8 {[%clk 0:01:15.7]} 22. Ne6 {[%clk 0:00:05.7]}
22... Rh8 {[%clk 0:01:12.3]} 23. Qg3 {[%clk 0:00:04.9]} 23... Rcg8 {[%clk
0:01:04.2]} 24. Rc7 {[%clk 0:00:02.4]} 24... Nxe4 {[%clk 0:00:59]} 25. Qg4
{[%clk 0:00:01.2]} 25... Ndf6 {[%clk 0:00:56.9]} 26. Qf5 {[%clk 0:00:01.3]}
26... Rh1+ {[%clk 0:00:48.8]} 27. Kxh1 {[%clk 0:00:01.1]} 27... Ng3+ {[%clk
0:00:48.2]} 28. Kg2 {[%clk 0:00:01.8]} 28... Nxf5 {[%clk 0:00:48.2]} 0-1